bitfinex-derivatives/quotes_BNBF0:USTF0_20250603
["timestamp","ask_amount","ask_price","bid_price","bid_amount"]
[1748967427385,1.48514401,668.0,667.72,0.29952674]
[1748967427783,1.48514401,667.98,667.72,0.29952674]
[1748967428387,1.48514401,667.93,667.72,0.29952674]
[1748967429191,1.48514401,667.89,667.72,0.29952674]
[1748967429493,5.21017594,668.76,667.72,0.29952674]
[1748967429494,1.48514401,667.88,667.72,0.29952674]
[1748967430194,1.48514401,667.93,667.72,0.29952674]
[1748967431389,1.48514401,667.92,667.72,0.29952674]
[1748967432595,1.48514401,667.91,667.72,0.29952674]
[1748967432789,1.48514401,667.92,667.72,0.29952674]
[1748967432993,3.72155424,668.64,667.72,0.29952674]
[1748967432994,1.48514401,667.9,667.72,0.29952674]
[1748967433195,1.48514401,667.89,667.72,0.29952674]
[1748967434197,1.48514401,667.88,667.72,0.29952674]
[1748967434391,1.48514401,667.89,667.72,0.29952674]
[1748967434792,1.48514401,667.88,667.72,0.29952674]
[1748967435491,1.48514401,667.87,667.72,0.29952674]
[1748967435697,1.48514401,667.85,667.72,0.29952674]
[1748967436798,1.48514401,667.83,667.72,0.29952674]
[1748967437500,1.48514401,667.82,667.72,0.29952674]
[1748967439295,1.48514401,667.84,667.72,0.29952674]
[1748967439497,1.48514401,667.85,667.72,0.29952674]
[1748967439697,1.48514401,667.84,667.72,0.29952674]
[1748967440001,5.21017594,668.85,667.72,0.29952674]
[1748967440002,1.48514401,667.82,667.72,0.29952674]
[1748967440798,1.48514401,667.91,667.72,0.29952674]
[1748967440998,1.48514401,667.92,667.72,0.29952674]
[1748967441202,1.48514401,667.91,667.72,0.29952674]
[1748967441800,1.48514401,667.93,667.72,0.29952674]
[1748967441998,1.48514401,667.92,667.72,0.29952674]
[1748967442499,1.48514401,667.91,667.72,0.29952674]
[1748967443504,1.48514401,667.92,667.72,0.29952674]
[1748967444100,1.48514401,667.91,667.72,0.29952674]
[1748967448610,1.48514401,667.92,667.72,0.29952674]
[1748967449001,1.48514401,667.93,667.72,0.29952674]
[1748967449200,1.48514401,667.92,667.72,0.29952674]
[1748967449402,1.48514401,667.93,667.72,0.29952674]
[1748967449602,1.48514401,667.94,667.72,0.29952674]
[1748967450204,1.48514401,667.95,667.72,0.29952674]
[1748967450606,1.48514401,667.9,667.72,0.29952674]
[1748967451607,1.48514401,667.88,667.72,0.29952674]
[1748967452105,3.72155424,668.68,667.72,0.29952674]
[1748967452106,1.48514401,667.85,667.72,0.29952674]
[1748967453411,1.48514401,667.84,667.72,0.29952674]
[1748967454415,1.48514401,667.83,667.72,0.29952674]
[1748967455409,1.48514401,667.82,667.72,0.29952674]
[1748967455608,1.48514401,667.83,667.72,0.29952674]
[1748967456313,1.48514401,667.85,667.72,0.29952674]
[1748967458214,1.48514401,667.84,667.72,0.29952674]
[1748967458417,1.48514401,667.85,667.72,0.29952674]
[1748967458810,1.48514401,667.84,667.72,0.29952674]
[1748967459015,1.48514401,667.85,667.72,0.29952674]
[1748967459216,1.48514401,667.83,667.72,0.29952674]
[1748967460017,3.72155424,668.49,667.72,0.29952674]
[1748967460018,1.48514401,667.92,667.72,0.29952674]
[1748967460218,5.21017594,668.75,667.72,0.29952674]
[1748967460219,1.48514401,667.93,667.72,0.29952674]
[1748967460418,3.72155424,668.68,667.72,0.29952674]
[1748967460419,1.48514401,667.92,667.72,0.29952674]
[1748967460817,1.48514401,667.93,667.72,0.29952674]
[1748967461913,1.48514401,667.92,667.72,0.29952674]
[1748967462815,1.48514401,667.98,667.73,0.62932243]
[1748967463012,1.48514401,667.96,667.74,0.29951777]
[1748967463218,1.48514401,667.97,667.74,0.29951777]
[1748967463517,1.48514401,667.96,667.75,0.6293206]
[1748967463717,1.48514401,667.96,667.76,0.92882755]
[1748967463915,1.48514401,667.96,667.77,0.29950432]
[1748967464421,1.48514401,667.97,667.77,0.29950432]
[1748967465322,1.48514401,667.97,667.78,0.62925809]
[1748967465515,1.48514401,667.97,667.56,0.47689507]
[1748967465516,1.48514401,667.97,667.79,0.29949535]
[1748967466316,3.72155424,668.65,667.79,0.29949535]
[1748967466521,1.48947536,667.99,667.79,0.29949535]
[1748967467022,1.48947536,668.0,667.79,0.29949535]
[1748967468118,1.48947536,668.01,667.79,0.29949535]
[1748967469223,1.48947536,668.0,667.79,0.29949535]
[1748967469422,1.48947536,668.01,667.79,0.29949535]
[1748967470722,1.48947536,668.0,667.79,0.29949535]
[1748967470923,1.48947536,667.99,667.79,0.29949535]
[1748967471127,1.48947536,667.97,667.79,0.29949535]
[1748967471426,1.48947536,667.98,667.79,0.29949535]
[1748967471726,1.48947536,667.96,667.79,0.29949535]
[1748967472120,1.48947536,667.95,667.79,0.29949535]
[1748967472324,1.48947536,667.92,667.79,0.29949535]
[1748967472524,1.48947536,667.91,667.79,0.29949535]
[1748967473328,1.48947536,667.9,667.79,0.29949535]
[1748967474023,1.48947536,667.91,667.79,0.29949535]
[1748967474228,1.48947536,667.9,667.79,0.29949535]
[1748967474827,1.48947536,667.91,667.79,0.29949535]
[1748967475224,1.48947536,667.9,667.79,0.29949535]
[1748967476029,5.21017594,668.81,667.79,0.29949535]
[1748967476030,1.48947536,667.89,667.79,0.29949535]
[1748967477926,1.48947536,667.89,667.87,0.47518162]
[1748967478126,1.48947536,667.89,667.88,0.47518162]
[1748967478431,1.48947536,667.89,667.79,0.29949535]
[1748967479230,1.48947536,667.87,667.79,0.29949535]
[1748967479431,1.48947536,667.84,667.79,0.29949535]
[1748967481327,1.48947536,667.85,667.79,0.29949535]
[1748967481528,1.48947536,667.84,667.79,0.29949535]
[1748967481933,1.48947536,667.85,667.79,0.29949535]
[1748967482433,1.48947536,667.84,667.79,0.29949535]
[1748967482634,1.48947536,667.86,667.79,0.29949535]
[1748967482830,1.48947536,667.85,667.79,0.29949535]
[1748967483334,2.23421305,667.91,667.79,0.29949535]
[1748967484734,2.23421305,667.9,667.79,0.29949535]
[1748967484932,1.48967755,667.83,667.79,0.29949535]
[1748967485136,2.23421305,667.92,667.79,0.29949535]
[1748967485438,2.23421305,667.93,667.79,0.29949535]
[1748967485638,2.23421305,667.91,667.79,0.29949535]
[1748967485840,2.23421305,667.86,667.79,0.29949535]
[1748967486231,2.23421305,667.87,667.79,0.29949535]
[1748967486539,2.23421305,667.88,667.79,0.29949535]
[1748967486738,2.23421305,667.9,667.79,0.29949535]
[1748967486935,2.23421305,667.88,667.01,0.47518162]
[1748967487135,1.48832572,667.66,667.1,0.47518162]
[1748967487334,1.48832572,667.66,667.11,0.29980063]
[1748967487533,1.48832572,667.67,667.11,0.29980063]
[1748967487735,1.48832572,667.66,667.11,0.29980063]
[1748967488239,1.48832572,667.67,667.11,0.77498225]
[1748967488436,1.48832572,667.67,667.11,0.29980063]
[1748967488632,1.48832572,667.68,667.11,0.29980063]
[1748967489536,1.48832572,667.69,667.11,0.29980063]
[1748967489742,1.48832572,667.68,667.11,0.29980063]
[1748967490137,1.48832572,667.69,667.11,0.29980063]
[1748967490842,1.48832572,667.7,667.11,0.29980063]
[1748967491042,1.48832572,667.7,667.12,0.62965107]
[1748967491242,1.48832572,667.7,667.13,0.29979164]
[1748967491639,1.48832572,667.69,667.13,0.29979164]
[1748967491840,1.48832572,667.65,667.13,0.29979164]
[1748967492042,1.48832572,667.67,667.13,0.29979164]
[1748967492242,1.48832572,667.67,667.14,0.62966256]
[1748967492441,3.72155424,668.51,667.15,0.29978265]
[1748967492442,1.48832572,667.68,667.15,0.29978265]
[1748967492640,1.48832572,667.66,667.15,0.29978265]
[1748967493142,1.48832572,667.66,667.16,0.6296625]
[1748967493342,1.48832572,667.66,667.17,0.29977367]
[1748967493539,1.48832572,667.67,667.18,0.62966254]
[1748967493739,1.48832572,667.67,667.17,0.29977367]
[1748967494545,1.48832572,667.68,667.17,0.29977367]
[1748967494747,1.48832572,667.67,667.18,0.62966268]
[1748967495046,1.48832572,667.67,667.19,0.29976468]
[1748967495645,1.48832572,667.69,667.19,0.29976468]
[1748967495841,1.48832572,667.68,667.19,0.29976468]
[1748967496448,1.48832572,667.69,667.19,0.7749463]
[1748967497043,1.48832572,667.69,667.2,0.47518162]
[1748967497248,1.48832572,667.69,667.21,0.29975569]
[1748967497551,1.48832572,667.69,667.21,0.77493731]
[1748967498150,1.48832572,667.67,667.3,0.47518162]
[1748967498348,1.48832572,667.67,667.31,0.77489239]
[1748967498548,1.48832572,667.68,667.32,0.7748879]
[1748967498748,1.48832572,667.68,667.33,0.29970179]
[1748967499251,7.44310849,669.09,667.33,0.29970179]
[1748967499252,2.23421305,667.84,667.33,0.29970179]
[1748967500451,2.23421305,667.85,667.33,0.29970179]
[1748967501352,2.23421305,667.86,667.33,0.29970179]
[1748967501551,2.23421305,667.87,667.33,0.29970179]
[1748967502046,2.23421305,667.86,667.33,0.29970179]
[1748967502248,2.23421305,667.89,667.33,0.29970179]
[1748967502548,2.23421305,667.88,667.33,0.29970179]
[1748967502851,2.23421305,667.84,667.33,0.29970179]
[1748967503052,2.23421305,667.86,667.33,0.29970179]
[1748967503446,2.23421305,667.86,667.34,0.47518162]
[1748967503645,2.23421305,667.87,667.35,0.77487443]
[1748967503849,2.23421305,667.87,667.36,0.29968832]
[1748967504047,2.23421305,667.86,667.36,0.29968832]
[1748967504246,3.72155424,668.46,667.36,0.29968832]
[1748967504247,2.23421305,667.87,667.36,0.29968832]
[1748967504447,2.23421305,667.87,667.37,0.47518162]
[1748967504647,2.23421305,667.88,667.38,0.47518162]
[1748967504846,2.23421305,667.88,667.37,0.47518162]
[1748967505450,2.23421305,667.88,667.36,0.29968832]
[1748967505451,2.23421305,667.88,667.39,0.47518162]
[1748967505950,2.23421305,667.88,667.4,0.47518162]
[1748967506352,2.23421305,667.89,667.43,0.47518162]
[1748967506552,2.23421305,667.89,667.44,0.47518162]
[1748967507356,2.23421305,667.98,667.36,0.29968832]
[1748967507655,2.23421305,667.99,667.36,0.29968832]
[1748967509352,2.23421305,667.97,667.38,0.47518162]
[1748967509556,2.23421305,667.98,667.39,0.47518162]
[1748967510355,2.23421305,667.98,667.42,0.47518162]
[1748967510550,2.23421305,667.98,667.43,0.47518162]
[1748967511258,2.23421305,667.98,667.47,0.47518162]
[1748967511455,2.23421305,667.98,667.48,0.47518162]
[1748967511854,2.23421305,667.98,667.49,0.47518162]
[1748967512156,2.23421305,667.96,667.52,0.47518162]
[1748967512353,2.23421305,667.96,667.56,0.47518162]
[1748967512554,2.23421305,667.96,667.57,0.47518162]
[1748967512851,2.23421305,667.96,667.36,0.29968832]
[1748967512852,2.23421305,667.93,667.55,0.47518162]
[1748967513052,2.23421305,667.91,667.53,0.47518162]
[1748967513363,2.23421305,667.92,667.6,0.47518162]
[1748967513552,2.23421305,667.93,667.6,0.47518162]
[1748967513952,2.23421305,667.92,667.6,0.47518162]
[1748967514157,2.23421305,667.92,667.59,0.47518162]
[1748967514358,2.23421305,667.92,667.63,0.47518162]
[1748967514659,11.9089735,670.53,667.36,0.29968832]
[1748967514660,2.23421305,667.91,667.62,0.47518162]
[1748967514854,2.23421305,667.93,667.63,0.47518162]
[1748967515060,2.23421305,667.93,667.64,0.47518162]
[1748967515559,2.23421305,667.92,667.64,0.47518162]
[1748967515853,2.23421305,667.91,667.65,0.47518162]
[1748967516052,2.23421305,667.93,667.65,0.47518162]
[1748967516459,2.23421305,667.93,667.66,0.47518162]
[1748967516959,2.23421305,667.93,667.68,0.47518162]
[1748967517158,2.23421305,667.81,667.55,0.47689507]
[1748967517361,2.23421305,667.81,667.56,0.47689507]
[1748967517559,2.23421305,667.81,667.6,0.47689507]
[1748967518060,2.23421305,667.83,667.62,0.47689507]
[1748967518256,2.23421305,667.83,667.36,0.29968832]
[1748967518257,2.23421305,667.83,667.63,0.47689507]
[1748967518456,2.23421305,667.83,667.57,0.47689507]
[1748967518760,2.23421305,667.87,667.58,0.47689507]
[1748967519557,2.23421305,667.86,667.63,0.47689507]
[1748967520058,2.23421305,667.86,667.64,0.47689507]
[1748967520454,5.21017594,668.67,667.73,0.47689507]
[1748967520455,2.23421305,667.83,667.73,0.47689507]
[1748967520656,2.23421305,667.83,667.74,0.47689507]
[1748967521358,2.23421305,667.83,667.73,0.47689507]
[1748967521753,2.23421305,667.82,667.74,0.47689507]
[1748967522359,2.23421305,667.82,667.75,0.47689507]
[1748967522659,2.23421305,667.81,667.75,0.47689507]
[1748967522856,2.23421305,667.81,667.76,0.47689507]
[1748967523260,2.23421305,667.81,667.75,0.47689507]
[1748967524060,2.23421305,667.8,667.75,0.47689507]
[1748967524261,2.23421305,667.8,667.73,0.47689507]
[1748967524662,2.23421305,667.8,667.76,0.47689507]
[1748967524863,2.23421305,667.79,667.76,0.47689507]
[1748967525465,2.23421305,667.78,667.73,0.47689507]
[1748967526365,2.23421305,667.77,667.71,0.47689507]
[1748967526761,2.23421305,667.78,667.68,0.47689507]
[1748967527361,2.23421305,667.77,667.65,0.47689507]
[1748967527562,2.23421305,667.77,667.36,0.29968832]
[1748967527563,2.23421305,667.77,667.64,0.47689507]
[1748967528365,2.23421305,667.75,667.71,0.47689507]
[1748967528566,2.23421305,667.72,667.71,0.47689507]
[1748967528764,3.72155424,668.16,667.71,0.47689507]
[1748967528962,3.72155424,668.16,668.04,0.4770243]
[1748967529168,3.72155424,668.16,667.71,0.47689507]
[1748967529469,5.21017594,668.38,667.36,0.29968832]
[1748967529470,3.72155424,668.14,667.67,0.47689507]
[1748967529668,2.22927655,667.7,667.65,0.47689507]
[1748967530368,2.22927655,667.67,667.64,0.47689507]
[1748967530667,2.00648755,667.67,667.63,0.47689507]
[1748967530970,3.72155424,668.1,667.61,0.47689507]
[1748967531163,3.72155424,668.12,667.61,0.47689507]
[1748967531471,3.72155424,668.12,667.57,0.47689507]
[1748967531664,3.72155424,668.1,667.57,0.47689507]
[1748967532068,3.72155424,668.11,667.57,0.47689507]
[1748967532269,3.72155424,668.11,667.53,0.47689507]
[1748967532570,1.48801285,667.54,667.53,0.47689507]
[1748967533071,1.48801285,667.54,667.39,0.47681191]
[1748967533267,1.48801285,667.52,667.51,0.47704252]
[1748967534266,1.48801285,667.55,667.4,0.29967036]
[1748967535270,1.48801285,667.53,667.4,0.29967036]
[1748967536268,1.48801285,667.52,667.4,0.29967036]
[1748967537270,1.48801285,667.53,667.4,0.29967036]
[1748967537675,1.48801285,667.52,667.4,0.29967036]
[1748967537871,1.48801285,667.53,667.4,0.29967036]
[1748967538070,1.48801285,667.52,667.4,0.29967036]
[1748967538271,1.48801285,667.5,667.4,0.29967036]
[1748967539371,1.48801285,667.49,667.4,0.29967036]
[1748967541974,1.48801285,667.47,667.4,0.29967036]
[1748967542377,1.48801285,667.45,667.4,0.29967036]
[1748967543480,1.48801285,667.44,667.4,0.29967036]
[1748967544279,1.48801285,667.42,667.4,0.29967036]
[1748967544581,3.72155424,668.04,667.4,0.29967036]
[1748967546377,3.72155424,668.03,667.4,0.29967036]
[1748967547082,3.72155424,668.03,667.4,0.77671288]
[1748967547275,3.72155424,667.94,667.4,0.77671288]
[1748967547478,3.72155424,667.94,667.41,0.47704252]
[1748967547679,3.72155424,667.94,667.42,0.29966138]
[1748967548176,3.72155424,667.93,667.42,0.29966138]
[1748967549978,3.72155424,667.93,667.42,0.7767039]
[1748967550177,3.72155424,667.93,667.42,0.29966138]
[1748967550387,3.72155424,667.94,667.42,0.29966138]
[1748967550785,2.24311081,667.46,667.42,0.29966138]
[1748967554687,2.24311081,667.46,667.42,0.7767039]
[1748967554988,2.24311081,667.45,667.42,0.29966138]
[1748967555389,3.72155424,667.91,667.42,0.29966138]
[1748967555390,2.24311081,667.44,667.42,0.29966138]
[1748967556486,2.24311081,667.48,667.42,0.29966138]
[1748967556785,2.24311081,667.47,667.42,0.29966138]
[1748967557097,2.24311081,667.46,667.42,0.29966138]
[1748967558391,2.24311081,667.47,667.42,0.29966138]
[1748967559290,2.24311081,667.51,667.42,0.29966138]
[1748967561489,2.24311081,667.5,667.42,0.29966138]
[1748967564990,2.24311081,667.53,667.42,0.29966138]
[1748967566288,3.72155424,668.09,667.42,0.29966138]
[1748967566289,2.24311081,667.52,667.42,0.29966138]
[1748967569190,3.72155424,668.06,667.42,0.29966138]
[1748967569191,2.24311081,667.49,667.42,0.29966138]
[1748967571598,2.24311081,667.5,667.42,0.29966138]
[1748967572595,2.24311081,667.49,667.42,0.29966138]
[1748967572799,2.24311081,667.5,667.42,0.29966138]
[1748967573305,2.24311081,667.51,667.42,0.29966138]
[1748967573501,2.24311081,667.5,667.42,0.29966138]
[1748967574902,2.24311081,667.46,667.42,0.29966138]
[1748967575304,2.24311081,667.45,667.42,0.29966138]
[1748967576597,2.24311081,667.47,667.42,0.29966138]
[1748967579401,2.24311081,667.51,667.42,0.29966138]
[1748967580402,2.24311081,667.5,667.42,0.29966138]
[1748967581206,2.24311081,667.49,667.42,0.29966138]
[1748967582207,3.72155424,668.01,667.42,0.29966138]
[1748967582402,11.9089735,669.29,667.42,0.29966138]
[1748967582600,0.29883305,669.27,667.42,0.29966138]
[1748967584110,2.24511179,667.48,667.42,0.29966138]
[1748967585208,2.24511179,667.49,667.42,0.29966138]
[1748967585508,2.24511179,667.48,667.42,0.29966138]
[1748967586408,2.24511179,667.47,667.42,0.29966138]
[1748967586804,2.24511179,667.48,667.42,0.29966138]
[1748967587608,2.24511179,667.53,667.42,0.29966138]
[1748967590113,2.24511179,667.55,667.42,0.29966138]
[1748967590917,2.24511179,667.57,667.42,0.29966138]
[1748967594315,2.24511179,667.56,667.42,0.29966138]
[1748967594720,2.24511179,667.54,667.42,0.29966138]
[1748967595421,2.24511179,667.55,667.42,0.29966138]
[1748967595919,2.24511179,667.53,667.42,0.29966138]
[1748967598317,2.24511179,667.54,667.42,0.29966138]
[1748967599026,2.24511179,667.52,667.42,0.29966138]
[1748967600323,2.24511179,667.5,667.42,0.29966138]
[1748967601426,2.24511179,667.49,667.42,0.29966138]
[1748967602122,2.24511179,667.5,667.42,0.29966138]
[1748967603322,3.74185298,668.06,667.42,0.29966138]
[1748967603323,2.24511179,667.46,667.42,0.29966138]
[1748967604122,2.24511179,667.43,667.42,0.29966138]
[1748967604826,3.74185298,667.91,667.42,0.29966138]
[1748967605127,3.74185298,667.88,667.42,0.29966138]
[1748967605328,3.74185298,667.84,667.42,0.29966138]
[1748967606225,3.74185298,667.83,667.42,0.29966138]
[1748967607328,2.24332923,667.46,667.42,0.29966138]
[1748967607521,3.74185298,667.75,667.42,0.29966138]
[1748967607722,3.74185298,667.75,667.42,0.01779649]
[1748967608022,3.74185298,667.77,667.42,0.01779649]
[1748967608627,3.74185298,667.76,667.42,0.01779649]
[1748967610927,3.74185298,667.78,667.42,0.01779649]
[1748967611824,3.74185298,667.79,667.42,0.01779649]
[1748967612727,3.74185298,667.8,667.42,0.01779649]
[1748967614027,3.74185298,667.81,666.88,0.47730369]
[1748967614228,1.1183358,667.08,666.89,0.29989953]
[1748967614431,1.1183358,667.07,666.89,0.29989953]
[1748967614629,1.1183358,667.08,666.89,0.29989953]
[1748967614831,1.1183358,667.06,666.89,0.29989953]
[1748967615433,1.1183358,667.08,666.89,0.29989953]
[1748967615733,1.11787463,667.08,666.89,0.29989953]
[1748967616833,1.11787463,667.09,666.89,0.29989953]
[1748967617629,1.11787463,667.08,666.89,0.29989953]
[1748967618736,1.11787463,667.09,666.89,0.29989953]
[1748967618936,1.11787463,667.05,666.89,0.29989953]
[1748967619434,1.11787463,667.06,666.89,0.29989953]
[1748967619640,1.11704447,667.06,666.89,0.29989953]
[1748967620239,1.11704447,667.05,666.89,0.29989953]
[1748967620440,1.11704447,667.06,666.89,0.29989953]
[1748967621842,5.23859417,668.25,666.89,0.29989953]
[1748967621843,1.11704447,667.07,666.89,0.29989953]
[1748967622637,1.11704447,667.08,666.89,0.29989953]
[1748967623338,1.4911144,667.23,666.89,0.29989953]
[1748967623540,1.11620461,667.08,666.89,0.29989953]
[1748967623742,1.11620461,667.09,666.89,0.29989953]
[1748967623939,1.4911144,667.24,666.89,0.29989953]
[1748967623940,1.11620461,667.08,666.89,0.29989953]
[1748967624544,1.11620461,667.11,666.89,0.29989953]
[1748967624939,1.11620461,667.11,666.9,0.63269836]
[1748967625143,1.11620461,667.11,666.91,0.63269836]
[1748967625346,1.11620461,667.11,666.89,0.29989953]
[1748967625844,1.11620461,667.11,666.9,0.63290329]
[1748967626040,1.11620461,667.11,666.91,0.6329033]
[1748967626246,1.11620461,667.1,666.92,0.63291173]
[1748967626540,1.4911144,667.27,666.89,0.29989953]
[1748967626541,1.11620461,667.11,666.89,0.29989953]
[1748967627244,1.1155956,667.12,666.89,0.29989953]
[1748967627542,1.1155956,667.11,666.89,0.29989953]
[1748967628141,1.1155956,667.12,666.89,0.29989953]
[1748967628342,1.1155956,667.11,666.89,0.29989953]
[1748967628544,1.1155956,667.12,666.89,0.29989953]
[1748967628744,1.1155956,667.11,666.89,0.29989953]
[1748967628947,3.74185298,668.13,666.89,0.29989953]
[1748967628948,1.1155956,667.09,666.89,0.29989953]
[1748967629248,1.1155956,667.07,666.89,0.29989953]
[1748967629441,1.1155956,667.06,666.9,0.63294478]
[1748967629646,1.1155956,667.06,666.89,0.29989953]
[1748967629647,1.1155956,667.08,666.89,0.29989953]
[1748967630049,1.1155956,667.07,666.9,0.63293955]
[1748967630249,1.1155956,667.07,666.89,0.29989953]
[1748967630450,1.1155956,667.07,666.9,0.63293998]
[1748967630649,1.11485538,667.08,666.89,0.29989953]
[1748967631048,1.11475862,667.08,666.89,0.29989953]
[1748967631450,1.11475862,667.08,666.9,0.63298991]
[1748967631649,1.11475862,667.08,666.89,0.29989953]
[1748967631650,1.11475862,667.09,666.89,0.29989953]
[1748967631851,1.11475862,667.08,666.9,0.63299]
[1748967632052,1.11475862,667.08,666.89,0.29989953]
[1748967632248,1.11475862,667.08,666.9,0.6329909]
[1748967632457,1.11475862,667.09,666.89,0.29989953]
[1748967633759,1.11475862,667.1,666.89,0.29989953]
[1748967634152,1.11475862,667.1,666.9,0.63293808]
[1748967634354,1.11475862,667.09,666.91,0.93282668]
[1748967634552,1.11475862,667.09,666.92,0.29988604]
[1748967634754,1.4911144,667.25,666.92,0.29988604]
[1748967634954,1.11410496,667.09,666.93,0.63293667]
[1748967635155,1.11410496,667.09,666.94,0.63293713]
[1748967635357,1.11410496,667.09,666.92,0.29988604]
[1748967635753,1.11410496,667.1,666.92,0.29988604]
[1748967636158,2.2366716,667.41,666.92,0.29988604]
[1748967636159,1.11410496,667.09,666.93,0.63298856]
[1748967636356,1.11410496,667.09,666.92,0.29988604]
[1748967636754,1.11410496,667.1,666.92,0.29988604]
[1748967636961,1.11410496,667.09,666.93,0.63298802]
[1748967637157,1.11410496,667.09,666.94,0.29987705]
[1748967637355,1.11410496,667.09,666.95,0.63298952]
[1748967637560,1.11410496,667.09,666.96,0.29986805]
[1748967637755,1.11410496,667.09,666.97,0.63298915]
[1748967637956,1.11410496,667.09,666.98,0.29985906]
[1748967638557,1.4911144,667.24,666.98,0.29985906]
[1748967638756,1.11356229,667.09,666.99,0.63298952]
[1748967638954,1.11356229,667.09,666.98,0.29985906]
[1748967639160,1.11356229,667.07,666.99,0.63298952]
[1748967639356,5.23859417,668.31,666.98,0.29985906]
[1748967639357,1.11356229,667.09,666.98,0.29985906]
[1748967639560,1.11356229,667.1,666.98,0.29985906]
[1748967639861,1.11356229,667.1,666.99,0.63298894]
[1748967640061,1.11356229,667.09,666.99,0.93284351]
[1748967640262,1.11356229,667.1,666.99,0.93284351]
[1748967640561,1.11356229,667.09,666.99,0.93284351]
[1748967640762,1.11356229,667.1,666.99,0.93284351]
[1748967641364,1.11356229,667.1,667.0,0.63298897]
[1748967641660,1.11356229,667.1,666.99,0.93284351]
[1748967642165,1.11356229,667.1,667.0,0.63278248]
[1748967642362,1.11356229,667.09,666.99,0.93284351]
[1748967642567,1.11328741,667.09,667.0,0.29985007]
[1748967643767,1.11328741,667.08,667.0,0.29985007]
[1748967645863,1.11328741,667.07,667.0,0.29985007]
[1748967646064,1.11328741,667.08,667.0,0.29985007]
[1748967646561,1.11344428,667.08,667.0,0.29985007]
[1748967647461,1.11363366,667.08,667.0,0.29985007]
[1748967648363,1.11363366,667.07,667.0,0.29985007]
[1748967649266,1.11363366,667.04,667.0,0.29985007]
[1748967649463,1.11363366,667.05,667.0,0.29985007]
[1748967649668,1.11363366,667.04,667.0,0.29985007]
[1748967650368,1.11363366,667.05,667.0,0.29985007]
[1748967650672,1.11363366,667.04,667.0,0.29985007]
[1748967651371,1.11363366,667.03,667.0,0.29985007]
[1748967652568,1.11363366,667.02,667.0,0.29985007]
[1748967653469,1.11363366,667.01,667.0,0.29985007]
[1748967654772,1.4911144,667.14,667.0,0.29985007]
[1748967655167,1.11508174,667.01,667.0,0.29985007]
[1748967656175,1.4911144,667.14,667.0,0.29985007]
[1748967656374,1.4911144,667.13,667.0,0.29985007]
[1748967657272,1.4911144,667.12,667.0,0.29985007]
[1748967658475,1.4911144,667.11,667.0,0.29985007]
[1748967658970,5.23859417,668.03,667.0,0.29985007]
[1748967658971,1.4911144,667.1,667.0,0.29985007]
[1748967659175,1.4911144,667.11,667.0,0.29985007]
[1748967659476,1.4911144,667.1,667.0,0.29985007]
[1748967659675,1.4911144,667.09,667.0,0.29985007]
[1748967660477,1.4911144,667.14,667.0,0.29985007]
[1748967660677,1.4911144,667.13,667.0,0.29985007]
[1748967662474,1.4911144,667.12,667.0,0.29985007]
[1748967662676,3.74185298,667.85,667.0,0.29985007]
[1748967662677,1.4911144,667.14,667.0,0.29985007]
[1748967662876,1.4911144,667.14,667.13,0.47746858]
[1748967663579,2.2366716,667.28,667.0,0.29985007]
[1748967663773,2.2366716,667.28,667.15,0.47760318]
[1748967664481,1.48978452,667.16,667.06,0.47760318]
[1748967664675,1.48978452,667.15,667.06,0.47760318]
[1748967665178,1.48978452,667.14,667.07,0.47760318]
[1748967665680,1.48978452,667.13,667.07,0.47760318]
[1748967666576,1.48978452,667.12,667.07,0.47760318]
[1748967667681,1.48978452,667.11,667.07,0.47760318]
[1748967667881,1.48978452,667.11,667.08,0.47760318]
[1748967669482,1.48978452,667.1,667.08,0.47760318]
[1748967670283,2.2366716,667.24,667.0,0.29985007]
[1748967670584,1.49203476,667.08,667.0,0.29985007]
[1748967672486,1.49203476,667.07,667.0,0.29985007]
[1748967673886,1.49203476,667.06,667.0,0.29985007]
[1748967674083,1.49203476,667.01,667.0,0.29985007]
[1748967675690,2.2366716,667.13,667.0,0.29985007]
[1748967676795,2.2366716,667.12,667.0,0.29985007]
[1748967677694,2.2366716,667.11,667.0,0.29985007]
[1748967678691,2.2366716,667.12,667.0,0.29985007]
[1748967679298,1.49370958,667.03,667.0,0.29985007]
[1748967681896,2.2366716,667.17,667.0,0.29985007]
[1748967681897,1.49370958,667.02,667.0,0.29985007]
[1748967683200,1.49370958,667.01,667.0,0.29985007]
[1748967683599,1.49370958,667.04,667.0,0.29985007]
[1748967683799,2.2366716,667.2,667.0,0.29985007]
[1748967683800,1.49370958,667.03,667.0,0.29985007]
[1748967683995,1.49370958,667.04,667.0,0.29985007]
[1748967684797,1.49370958,667.05,667.0,0.29985007]
[1748967685595,1.49370958,667.04,667.0,0.29985007]
[1748967686400,1.49370958,667.05,667.0,0.29985007]
[1748967686600,1.49370958,667.04,667.0,0.29985007]
[1748967688597,1.49370958,667.03,667.0,0.29985007]
[1748967689200,1.49370958,667.01,667.0,0.29985007]
[1748967693506,2.2366716,667.11,667.0,0.29985007]
[1748967693707,2.2366716,667.14,667.0,0.29985007]
[1748967694607,2.2366716,667.13,667.0,0.29985007]
[1748967695201,2.2366716,667.12,667.0,0.29985007]
[1748967696814,2.2366716,667.11,667.0,0.29985007]
[1748967697013,7.48370597,668.4,667.0,0.29985007]
[1748967697014,2.2366716,667.1,667.0,0.29985007]